[Event "Titled Tuesday Blitz December 13 Late 2022"]
[White "Gardezi, Arsal"]
[Black "Domingo Nunez, Ruben"]
[WhiteFideId "30949521"]
[BlackFideId "22245570"]
[WhiteElo "1906"]
[BlackElo "2406"]
[Result "0-1"]
[Round "04"]
[TimeControl "180+1"]
[Date "2022.12.14"]
[WhiteClock "0:01:37"]
[BlackClock "0:01:34"]

1. Nf3 {[%clk 0:03:00]}  g6 {[%clk 0:02:41]} 2. g3 {[%clk 0:03:00]}  Bg7 {[%clk 0:02:42]} 3. Bg2 {[%clk 0:03:00]}  Nf6 {[%clk 0:02:43]} 4. O-O {[%clk 0:03:01]}  O-O {[%clk 0:02:43]} 5. d3 {[%clk 0:03:01]}  c5 {[%clk 0:02:43]} 6. Nbd2 {[%clk 0:03:02]}  Nc6 {[%clk 0:02:44]} 7. e4 {[%clk 0:03:02]}  Rb8 {[%clk 0:02:45]} 8. c3 {[%clk 0:03:03]}  b5 {[%clk 0:02:46]} 9. e5 {[%clk 0:03:01]}  Nd5 {[%clk 0:02:40]} 10. d4 {[%clk 0:03:02]}  b4 {[%clk 0:02:40]} 11. Ne4 {[%clk 0:02:39]}  bxc3 {[%clk 0:02:36]} 12. bxc3 {[%clk 0:02:39]}  Ba6 {[%clk 0:02:33]} 13. Re1 {[%clk 0:02:39]}  cxd4 {[%clk 0:02:31]} 14. cxd4 {[%clk 0:02:35]}  Ncb4 {[%clk 0:02:31]} 15. Nc5 {[%clk 0:02:27]}  Bc4 {[%clk 0:02:16]} 16. a3 {[%clk 0:02:23]}  Nc6 {[%clk 0:02:07]} 17. Nd2 {[%clk 0:02:21]}  Nc3 {[%clk 0:02:00]} 18. Qf3 {[%clk 0:02:04]}  Ne2+ {[%clk 0:01:58]} 19. Rxe2 {[%clk 0:02:04]}  Nxd4 {[%clk 0:01:59]} 20. Qe4 {[%clk 0:01:56]}  Nxe2+ {[%clk 0:01:58]} 21. Kh1 {[%clk 0:01:55]}  Bb5 {[%clk 0:01:53]} 22. a4 {[%clk 0:01:54]}  Qa5 {[%clk 0:01:35]} 23. Ndb3 {[%clk 0:01:40]}  Qe1+ {[%clk 0:01:34]} 24. Bf1 {[%clk 0:01:37]} 0-1


[Site "https://www.chess.com"]

[Event "Titled Tuesday Blitz December 13 Late 2022"]
[White "Gerbelli Neto, Eduardo"]
[Black "Urbina Perez, Juan Antonio"]
[WhiteFideId "2103281"]
[BlackFideId "2217368"]
[WhiteElo "2178"]
[BlackElo "2197"]
[Result "1-0"]
[Round "04"]
[TimeControl "180+1"]
[Date "2022.12.14"]
[WhiteClock "0:00:14"]
[BlackClock "0:00:14"]

1. e4 {[%clk 0:03:00]}  c5 {[%clk 0:02:49]} 2. Nc3 {[%clk 0:03:00]}  Nc6 {[%clk 0:02:49]} 3. f4 {[%clk 0:03:01]}  g6 {[%clk 0:02:48]} 4. Nf3 {[%clk 0:03:02]}  Bg7 {[%clk 0:02:49]} 5. Bc4 {[%clk 0:03:02]}  e6 {[%clk 0:02:48]} 6. f5 {[%clk 0:03:02]}  gxf5 {[%clk 0:02:47]} 7. d3 {[%clk 0:03:02]}  Nge7 {[%clk 0:02:45]} 8. O-O {[%clk 0:03:01]}  O-O {[%clk 0:02:45]} 9. Qe1 {[%clk 0:03:00]}  fxe4 {[%clk 0:02:43]} 10. dxe4 {[%clk 0:03:00]}  d5 {[%clk 0:02:43]} 11. Bb3 {[%clk 0:02:43]}  Nd4 {[%clk 0:02:41]} 12. Bg5 {[%clk 0:02:35]}  Nxf3+ {[%clk 0:02:30]} 13. Rxf3 {[%clk 0:02:31]}  d4 {[%clk 0:02:23]} 14. Ne2 {[%clk 0:02:26]}  Qc7 {[%clk 0:02:14]} 15. Qh4 {[%clk 0:02:16]}  Ng6 {[%clk 0:02:13]} 16. Qh5 {[%clk 0:02:15]}  b5 {[%clk 0:02:10]} 17. Rh3 {[%clk 0:02:12]}  Re8 {[%clk 0:01:58]} 18. Qxh7+ {[%clk 0:02:12]}  Kf8 {[%clk 0:01:58]} 19. c4 {[%clk 0:01:55]}  bxc4 {[%clk 0:01:42]} 20. Bxc4 {[%clk 0:01:52]}  Qe5 {[%clk 0:01:40]} 21. Bh6 {[%clk 0:01:27]}  Bxh6 {[%clk 0:01:38]} 22. Qxh6+ {[%clk 0:01:28]}  Qg7 {[%clk 0:01:38]} 23. Qh5 {[%clk 0:01:20]}  Qe5 {[%clk 0:01:29]} 24. Qf3 {[%clk 0:01:16]}  Bb7 {[%clk 0:01:27]} 25. Rf1 {[%clk 0:01:16]}  Re7 {[%clk 0:01:22]} 26. Rh7 {[%clk 0:01:00]}  f5 {[%clk 0:00:58]} 27. Rh6 {[%clk 0:00:52]}  Rg7 {[%clk 0:00:29]} 28. Rxg6 {[%clk 0:00:26]}  Rxg6 {[%clk 0:00:28]} 29. Nf4 {[%clk 0:00:26]}  Rf6 {[%clk 0:00:21]} 30. Nxe6+ {[%clk 0:00:25]}  Rxe6 {[%clk 0:00:20]} 31. Bxe6 {[%clk 0:00:26]}  Qxe6 {[%clk 0:00:20]} 32. Qh5 {[%clk 0:00:25]}  Bxe4 {[%clk 0:00:15]} 33. Qh8+ {[%clk 0:00:25]}  Qg8 {[%clk 0:00:15]} 34. Qf6+ {[%clk 0:00:25]}  Qf7 {[%clk 0:00:14]} 35. Qd6+ {[%clk 0:00:24]}  Kg7 {[%clk 0:00:13]} 36. Qxc5 {[%clk 0:00:21]}  Rd8 {[%clk 0:00:10]} 37. Qe5+ {[%clk 0:00:20]}  Qf6 {[%clk 0:00:10]} 38. Qc7+ {[%clk 0:00:20]}  Kg6 {[%clk 0:00:10]} 39. Rf4 {[%clk 0:00:16]}  d3 {[%clk 0:00:09]} 40. Rf1 {[%clk 0:00:07]}  d2 {[%clk 0:00:09]} 41. Rd1 {[%clk 0:00:08]}  Qd4+ {[%clk 0:00:10]} 42. Kh1 {[%clk 0:00:07]}  Qd5 {[%clk 0:00:10]} 43. Qg3+ {[%clk 0:00:07]}  Kf6 {[%clk 0:00:09]} 44. Qh4+ {[%clk 0:00:07]}  Ke5 {[%clk 0:00:10]} 45. Qe7+ {[%clk 0:00:05]}  Kf4 {[%clk 0:00:07]} 46. Qh4+ {[%clk 0:00:05]}  Ke5 {[%clk 0:00:06]} 47. Qe7+ {[%clk 0:00:05]}  Qe6 {[%clk 0:00:07]} 48. Qxd8 {[%clk 0:00:05]}  Bxg2+ {[%clk 0:00:06]} 49. Kxg2 {[%clk 0:00:04]}  Qc6+ {[%clk 0:00:07]} 50. Kg1 {[%clk 0:00:03]}  Qc5+ {[%clk 0:00:07]} 51. Kg2 {[%clk 0:00:04]}  Qc6+ {[%clk 0:00:07]} 52. Kg1 {[%clk 0:00:04]}  Qc5+ {[%clk 0:00:07]} 53. Kf1 {[%clk 0:00:05]}  Qc4+ {[%clk 0:00:06]} 54. Kf2 {[%clk 0:00:05]}  Qf4+ {[%clk 0:00:06]} 55. Ke2 {[%clk 0:00:05]}  Qxh2+ {[%clk 0:00:06]} 56. Kd3 {[%clk 0:00:05]}  Qg3+ {[%clk 0:00:06]} 57. Kxd2 {[%clk 0:00:06]}  Qf2+ {[%clk 0:00:05]} 58. Kc1 {[%clk 0:00:07]}  Qe3+ {[%clk 0:00:05]} 59. Qd2 {[%clk 0:00:08]}  Qc5+ {[%clk 0:00:04]} 60. Qc3+ {[%clk 0:00:08]}  Qxc3+ {[%clk 0:00:04]} 61. bxc3 {[%clk 0:00:09]}  Ke4 {[%clk 0:00:04]} 62. Rf1 {[%clk 0:00:10]}  Ke3 {[%clk 0:00:05]} 63. Rxf5 {[%clk 0:00:09]}  Kd3 {[%clk 0:00:06]} 64. Ra5 {[%clk 0:00:10]}  Kc4 {[%clk 0:00:06]} 65. Rxa7 {[%clk 0:00:10]}  Kd3 {[%clk 0:00:06]} 66. a4 {[%clk 0:00:10]}  Kc4 {[%clk 0:00:07]} 67. a5 {[%clk 0:00:10]}  Kb5 {[%clk 0:00:08]} 68. Kc2 {[%clk 0:00:10]}  Kc6 {[%clk 0:00:09]} 69. a6 {[%clk 0:00:10]}  Kb5 {[%clk 0:00:09]} 70. Rb7+ {[%clk 0:00:11]}  Kxa6 {[%clk 0:00:09]} 71. Rb3 {[%clk 0:00:11]}  Ka5 {[%clk 0:00:10]} 72. Kd3 {[%clk 0:00:12]}  Ka4 {[%clk 0:00:10]} 73. Kc4 {[%clk 0:00:13]}  Ka5 {[%clk 0:00:11]} 74. Kc5 {[%clk 0:00:14]}  Ka6 {[%clk 0:00:12]} 75. Kc6 {[%clk 0:00:13]}  Ka7 {[%clk 0:00:12]} 76. Rb4 {[%clk 0:00:14]}  Ka8 {[%clk 0:00:13]} 77. Kc7 {[%clk 0:00:14]}  Ka7 {[%clk 0:00:14]} 78. Ra4# {[%clk 0:00:14]} 1-0


[Site "https://www.chess.com"]

[Event "Titled Tuesday Blitz December 13 Late 2022"]
[White "Goryachkina, Aleksandra"]
[Black "Donskov, Anatoly"]
[WhiteFideId "4147103"]
[BlackFideId "24143413"]
[WhiteElo "2484"]
[BlackElo "2219"]
[Result "1/2-1/2"]
[Round "04"]
[TimeControl "180+1"]
[Date "2022.12.14"]
[WhiteClock "0:00:32"]
[BlackClock "0:00:41"]

1. e4 {[%clk 0:03:00]}  e5 {[%clk 0:02:59]} 2. Nc3 {[%clk 0:02:59]}  Nc6 {[%clk 0:02:59]} 3. Nf3 {[%clk 0:02:57]}  Nf6 {[%clk 0:03:00]} 4. d4 {[%clk 0:02:58]}  exd4 {[%clk 0:03:00]} 5. Nxd4 {[%clk 0:02:58]}  Bb4 {[%clk 0:03:00]} 6. Nxc6 {[%clk 0:02:58]}  bxc6 {[%clk 0:03:00]} 7. Bd3 {[%clk 0:02:59]}  d5 {[%clk 0:03:00]} 8. exd5 {[%clk 0:02:58]}  cxd5 {[%clk 0:03:01]} 9. O-O {[%clk 0:02:57]}  O-O {[%clk 0:03:00]} 10. h3 {[%clk 0:02:57]}  c6 {[%clk 0:03:00]} 11. Qf3 {[%clk 0:02:57]}  Bd6 {[%clk 0:02:56]} 12. Bf4 {[%clk 0:02:39]}  Rb8 {[%clk 0:02:56]} 13. b3 {[%clk 0:02:36]}  Rb4 {[%clk 0:02:56]} 14. Bxd6 {[%clk 0:02:29]}  Qxd6 {[%clk 0:02:57]} 15. Rad1 {[%clk 0:02:25]}  Re8 {[%clk 0:02:55]} 16. Qg3 {[%clk 0:02:10]}  Qxg3 {[%clk 0:02:54]} 17. fxg3 {[%clk 0:02:11]}  Nd7 {[%clk 0:02:52]} 18. g4 {[%clk 0:02:03]}  Ne5 {[%clk 0:02:51]} 19. Rfe1 {[%clk 0:01:59]}  f6 {[%clk 0:02:45]} 20. Bf1 {[%clk 0:01:55]}  Kf8 {[%clk 0:02:42]} 21. Kf2 {[%clk 0:01:53]}  Nf7 {[%clk 0:01:59]} 22. a3 {[%clk 0:01:42]}  Rxe1 {[%clk 0:01:54]} 23. axb4 {[%clk 0:01:23]}  Rxd1 {[%clk 0:01:52]} 24. Nxd1 {[%clk 0:01:24]}  Ke7 {[%clk 0:01:51]} 25. Ke3 {[%clk 0:01:22]}  Kd6 {[%clk 0:01:48]} 26. Nb2 {[%clk 0:01:15]}  Nd8 {[%clk 0:01:37]} 27. Bd3 {[%clk 0:01:11]}  h6 {[%clk 0:01:37]} 28. Na4 {[%clk 0:01:08]}  Nb7 {[%clk 0:01:31]} 29. Kd4 {[%clk 0:01:06]}  Nd8 {[%clk 0:01:26]} 30. Bf5 {[%clk 0:01:01]}  Bxf5 {[%clk 0:01:21]} 31. gxf5 {[%clk 0:01:01]}  Nb7 {[%clk 0:01:07]} 32. c4 {[%clk 0:00:50]}  dxc4 {[%clk 0:01:05]} 33. bxc4 {[%clk 0:00:50]}  c5+ {[%clk 0:01:00]} 34. bxc5+ {[%clk 0:00:42]}  Kc6 {[%clk 0:00:59]} 35. g4 {[%clk 0:00:38]}  Na5 {[%clk 0:00:40]} 36. Kc3 {[%clk 0:00:34]}  Nb7 {[%clk 0:00:40]} 37. Kd4 {[%clk 0:00:32]}  Na5 {[%clk 0:00:40]} 38. Kc3 {[%clk 0:00:32]}  Nb7 {[%clk 0:00:41]} 39. Kd4 {[%clk 0:00:32]} 1/2-1/2


[Site "https://www.chess.com"]

[Event "Titled Tuesday Blitz December 13 Late 2022"]
[White "Gutkin, Ilya"]
[Black "Castillo Pena, Patricia Evarista"]
[WhiteFideId "16203470"]
[BlackFideId "6412106"]
[WhiteElo "2265"]
[BlackElo "1919"]
[Result "1-0"]
[Round "04"]
[TimeControl "180+1"]
[Date "2022.12.14"]
[WhiteClock "0:00:24"]
[BlackClock "0:00:04"]

1. Nf3 {[%clk 0:03:00]}  d5 {[%clk 0:02:58]} 2. g3 {[%clk 0:03:01]}  Nf6 {[%clk 0:02:58]} 3. Bg2 {[%clk 0:03:01]}  c6 {[%clk 0:02:57]} 4. c4 {[%clk 0:03:01]}  e6 {[%clk 0:02:57]} 5. O-O {[%clk 0:02:59]}  Nbd7 {[%clk 0:02:57]} 6. d4 {[%clk 0:02:59]}  Be7 {[%clk 0:02:57]} 7. Nc3 {[%clk 0:02:58]}  O-O {[%clk 0:02:57]} 8. Qc2 {[%clk 0:02:59]}  b6 {[%clk 0:02:47]} 9. e4 {[%clk 0:02:58]}  dxe4 {[%clk 0:02:46]} 10. Nxe4 {[%clk 0:02:59]}  Bb7 {[%clk 0:02:45]} 11. Rd1 {[%clk 0:02:58]}  Rc8 {[%clk 0:02:44]} 12. b3 {[%clk 0:02:57]}  Qc7 {[%clk 0:02:40]} 13. Bf4 {[%clk 0:02:55]}  Qd8 {[%clk 0:02:33]} 14. Nd6 {[%clk 0:02:54]}  Rb8 {[%clk 0:02:26]} 15. Nxb7 {[%clk 0:02:52]}  Rxb7 {[%clk 0:02:26]} 16. Ne5 {[%clk 0:02:52]}  Nxe5 {[%clk 0:02:15]} 17. dxe5 {[%clk 0:02:53]}  Nd7 {[%clk 0:02:15]} 18. Bxc6 {[%clk 0:02:49]}  Rc7 {[%clk 0:02:15]} 19. Be4 {[%clk 0:02:34]}  g6 {[%clk 0:02:12]} 20. Rd2 {[%clk 0:02:31]}  Bg5 {[%clk 0:02:11]} 21. Bxg5 {[%clk 0:02:25]}  Qxg5 {[%clk 0:02:10]} 22. f4 {[%clk 0:02:24]}  Qe7 {[%clk 0:02:08]} 23. Rad1 {[%clk 0:02:22]}  Nc5 {[%clk 0:02:06]} 24. Bf3 {[%clk 0:02:20]}  a5 {[%clk 0:02:05]} 25. Qb2 {[%clk 0:02:09]}  Rd7 {[%clk 0:01:59]} 26. Rxd7 {[%clk 0:02:08]}  Nxd7 {[%clk 0:01:59]} 27. Qd4 {[%clk 0:02:07]}  Nc5 {[%clk 0:01:56]} 28. Qd6 {[%clk 0:02:07]}  Qxd6 {[%clk 0:01:47]} 29. Rxd6 {[%clk 0:02:08]}  Rb8 {[%clk 0:01:40]} 30. Bc6 {[%clk 0:02:03]}  Kf8 {[%clk 0:01:34]} 31. Bb5 {[%clk 0:01:58]}  Ne4 {[%clk 0:01:28]} 32. Rd7 {[%clk 0:01:56]}  Nc3 {[%clk 0:01:26]} 33. Rd2 {[%clk 0:01:38]}  Ke7 {[%clk 0:01:23]} 34. Kg2 {[%clk 0:01:34]}  Rd8 {[%clk 0:01:21]} 35. Rc2 {[%clk 0:01:24]}  Ne4 {[%clk 0:01:05]} 36. Bc6 {[%clk 0:01:11]}  Nc5 {[%clk 0:00:57]} 37. Bf3 {[%clk 0:01:05]}  f6 {[%clk 0:00:55]} 38. exf6+ {[%clk 0:01:05]}  Kxf6 {[%clk 0:00:56]} 39. Kf2 {[%clk 0:01:03]}  e5 {[%clk 0:00:54]} 40. fxe5+ {[%clk 0:00:57]}  Kxe5 {[%clk 0:00:55]} 41. Re2+ {[%clk 0:00:56]}  Kf6 {[%clk 0:00:47]} 42. Ke3 {[%clk 0:00:50]}  Re8+ {[%clk 0:00:43]} 43. Kd4 {[%clk 0:00:49]}  Rd8+ {[%clk 0:00:39]} 44. Ke3 {[%clk 0:00:47]}  Rd3+ {[%clk 0:00:37]} 45. Kf2 {[%clk 0:00:47]}  Rc3 {[%clk 0:00:29]} 46. Bd5 {[%clk 0:00:42]}  h5 {[%clk 0:00:15]} 47. Ke1 {[%clk 0:00:32]}  g5 {[%clk 0:00:12]} 48. Kd2 {[%clk 0:00:29]}  Rd3+ {[%clk 0:00:11]} 49. Kc2 {[%clk 0:00:29]}  Rd4 {[%clk 0:00:09]} 50. a3 {[%clk 0:00:24]}  h4 {[%clk 0:00:04]} 51. b4 {[%clk 0:00:23]}  axb4 {[%clk 0:00:04]} 52. axb4 {[%clk 0:00:24]} 1-0


[Site "https://www.chess.com"]

[Event "Titled Tuesday Blitz December 13 Late 2022"]
[White "Hamedi Nia, Vesal"]
[Black "Martinez Alcantara, Jose Eduardo"]
[WhiteFideId "12542253"]
[BlackFideId "3805662"]
[WhiteElo "1844"]
[BlackElo "2707"]
[Result "0-1"]
[Round "04"]
[TimeControl "180+1"]
[Date "2022.12.14"]
[WhiteClock "0:00:31"]
[BlackClock "0:02:17"]

1. d4 {[%clk 0:03:00]}  Nf6 {[%clk 0:02:57]} 2. c4 {[%clk 0:02:57]}  e6 {[%clk 0:02:57]} 3. Nf3 {[%clk 0:02:56]}  Bb4+ {[%clk 0:02:57]} 4. Nbd2 {[%clk 0:02:56]}  b6 {[%clk 0:02:55]} 5. a3 {[%clk 0:02:56]}  Bxd2+ {[%clk 0:02:55]} 6. Qxd2 {[%clk 0:02:57]}  Bb7 {[%clk 0:02:56]} 7. e3 {[%clk 0:02:56]}  a5 {[%clk 0:02:56]} 8. b3 {[%clk 0:02:56]}  d6 {[%clk 0:02:56]} 9. Bb2 {[%clk 0:02:56]}  Nbd7 {[%clk 0:02:57]} 10. Be2 {[%clk 0:02:56]}  O-O {[%clk 0:02:58]} 11. O-O {[%clk 0:02:55]}  Qe7 {[%clk 0:02:56]} 12. Rac1 {[%clk 0:02:49]}  Ne4 {[%clk 0:02:55]} 13. Qc2 {[%clk 0:02:46]}  f5 {[%clk 0:02:56]} 14. d5 {[%clk 0:02:46]}  e5 {[%clk 0:02:56]} 15. Nd2 {[%clk 0:02:46]}  Nxd2 {[%clk 0:02:53]} 16. Qxd2 {[%clk 0:02:47]}  f4 {[%clk 0:02:53]} 17. exf4 {[%clk 0:02:46]}  Rxf4 {[%clk 0:02:51]} 18. Rce1 {[%clk 0:02:42]}  Raf8 {[%clk 0:02:42]} 19. Bd3 {[%clk 0:02:39]}  Nc5 {[%clk 0:02:36]} 20. Bc2 {[%clk 0:02:37]}  a4 {[%clk 0:02:36]} 21. b4 {[%clk 0:02:29]}  Nb3 {[%clk 0:02:32]} 22. Qd3 {[%clk 0:02:27]}  g6 {[%clk 0:02:33]} 23. Bxb3 {[%clk 0:02:23]}  axb3 {[%clk 0:02:33]} 24. Qxb3 {[%clk 0:02:23]}  Qf7 {[%clk 0:02:30]} 25. Re2 {[%clk 0:02:17]}  b5 {[%clk 0:02:25]} 26. cxb5 {[%clk 0:01:18]}  Bxd5 {[%clk 0:02:25]} 27. Qc2 {[%clk 0:01:12]}  Bxg2 {[%clk 0:02:19]} 28. Bc1 {[%clk 0:00:31]}  Rg4 {[%clk 0:02:17]} 0-1


[Site "https://www.chess.com"]

[Event "Titled Tuesday Blitz December 13 Late 2022"]
[White "Hamley, Ryan"]
[Black "Ansh M Shah"]
[WhiteFideId "30959497"]
[BlackFideId "25033379"]
[WhiteElo "2599"]
[BlackElo "2084"]
[Result "1-0"]
[Round "04"]
[TimeControl "180+1"]
[Date "2022.12.14"]
[WhiteClock "0:00:47"]
[BlackClock "0:00:10"]

1. Nf3 {[%clk 0:03:00]}  Nf6 {[%clk 0:02:58]} 2. d4 {[%clk 0:02:59]}  e6 {[%clk 0:02:58]} 3. Bf4 {[%clk 0:02:59]}  d5 {[%clk 0:02:59]} 4. e3 {[%clk 0:02:59]}  Be7 {[%clk 0:03:00]} 5. Nbd2 {[%clk 0:02:59]}  O-O {[%clk 0:03:00]} 6. Bd3 {[%clk 0:03:00]}  b6 {[%clk 0:03:01]} 7. O-O {[%clk 0:03:00]}  Bb7 {[%clk 0:03:02]} 8. c3 {[%clk 0:03:00]}  Nbd7 {[%clk 0:03:02]} 9. Re1 {[%clk 0:03:01]}  c5 {[%clk 0:03:03]} 10. h3 {[%clk 0:03:01]}  Rc8 {[%clk 0:03:03]} 11. Qe2 {[%clk 0:03:01]}  Ne4 {[%clk 0:03:03]} 12. a4 {[%clk 0:02:58]}  a5 {[%clk 0:02:46]} 13. Rac1 {[%clk 0:02:54]}  f5 {[%clk 0:02:40]} 14. c4 {[%clk 0:02:52]}  dxc4 {[%clk 0:02:37]} 15. Nxc4 {[%clk 0:02:50]}  Ndf6 {[%clk 0:02:27]} 16. Red1 {[%clk 0:02:44]}  Nd5 {[%clk 0:02:28]} 17. dxc5 {[%clk 0:02:41]}  Nxc5 {[%clk 0:02:24]} 18. Bc2 {[%clk 0:02:33]}  Qe8 {[%clk 0:02:19]} 19. Nfe5 {[%clk 0:02:25]}  Ba6 {[%clk 0:02:08]} 20. Qf3 {[%clk 0:02:13]}  Rd8 {[%clk 0:01:19]} 21. b3 {[%clk 0:02:03]}  Bf6 {[%clk 0:01:19]} 22. Bg3 {[%clk 0:01:39]}  Bb7 {[%clk 0:01:09]} 23. Qe2 {[%clk 0:01:33]}  Ba6 {[%clk 0:01:07]} 24. Qe1 {[%clk 0:01:33]}  Nb4 {[%clk 0:01:04]} 25. Rxd8 {[%clk 0:00:56]}  Qxd8 {[%clk 0:01:05]} 26. Bb1 {[%clk 0:00:50]}  Nxb3 {[%clk 0:00:11]} 27. Rd1 {[%clk 0:00:50]}  Qa8 {[%clk 0:00:10]} 28. Nxb6 {[%clk 0:00:48]}  Qb7 {[%clk 0:00:10]} 29. Nbd7 {[%clk 0:00:48]}  Rd8 {[%clk 0:00:10]} 30. Nxf6+ {[%clk 0:00:47]}  gxf6 {[%clk 0:00:10]} 31. Rxd8+ {[%clk 0:00:48]}  Kg7 {[%clk 0:00:10]} 32. Rd7+ {[%clk 0:00:47]} 1-0


[Site "https://www.chess.com"]

[Event "Titled Tuesday Blitz December 13 Late 2022"]
[White "Jimenez Almeida, Luis David"]
[Black "Korchmar, Vasiliy"]
[WhiteFideId "22242244"]
[BlackFideId "24131750"]
[WhiteElo "2158"]
[BlackElo "2370"]
[Result "1-0"]
[Round "04"]
[TimeControl "180+1"]
[Date "2022.12.14"]
[WhiteClock "0:00:09"]
[BlackClock "0:00:01"]

1. e4 {[%clk 0:03:00]}  c5 {[%clk 0:02:59]} 2. Nc3 {[%clk 0:03:00]}  d6 {[%clk 0:02:59]} 3. Nge2 {[%clk 0:03:00]}  Nc6 {[%clk 0:02:57]} 4. d4 {[%clk 0:02:59]}  cxd4 {[%clk 0:02:57]} 5. Nxd4 {[%clk 0:03:00]}  Nf6 {[%clk 0:02:58]} 6. Bg5 {[%clk 0:03:00]}  Bd7 {[%clk 0:02:57]} 7. Qd2 {[%clk 0:03:00]}  a6 {[%clk 0:02:58]} 8. f4 {[%clk 0:03:00]}  e6 {[%clk 0:02:58]} 9. O-O-O {[%clk 0:02:58]}  Be7 {[%clk 0:02:57]} 10. h4 {[%clk 0:02:57]}  b5 {[%clk 0:02:56]} 11. Nxc6 {[%clk 0:02:33]}  Bxc6 {[%clk 0:02:57]} 12. Bd3 {[%clk 0:02:33]}  b4 {[%clk 0:02:56]} 13. Bxf6 {[%clk 0:02:31]}  Bxf6 {[%clk 0:02:54]} 14. Ne2 {[%clk 0:02:32]}  Qb6 {[%clk 0:02:12]} 15. g4 {[%clk 0:02:23]}  a5 {[%clk 0:02:02]} 16. g5 {[%clk 0:02:22]}  Be7 {[%clk 0:02:02]} 17. h5 {[%clk 0:02:15]}  a4 {[%clk 0:02:00]} 18. Kb1 {[%clk 0:02:15]}  a3 {[%clk 0:01:58]} 19. b3 {[%clk 0:02:13]}  h6 {[%clk 0:01:58]} 20. g6 {[%clk 0:02:09]}  fxg6 {[%clk 0:01:55]} 21. hxg6 {[%clk 0:02:10]}  Bf6 {[%clk 0:01:54]} 22. Rh5 {[%clk 0:01:55]}  O-O {[%clk 0:01:36]} 23. Bc4 {[%clk 0:01:42]}  Bxe4 {[%clk 0:01:30]} 24. Bxe6+ {[%clk 0:01:42]}  Kh8 {[%clk 0:01:30]} 25. f5 {[%clk 0:01:36]}  Bxc2+ {[%clk 0:00:54]} 26. Qxc2 {[%clk 0:01:11]}  Qe3 {[%clk 0:00:34]} 27. Qd2 {[%clk 0:00:56]}  Qe4+ {[%clk 0:00:33]} 28. Qd3 {[%clk 0:00:56]}  Qe5 {[%clk 0:00:34]} 29. Nd4 {[%clk 0:00:50]}  Rfe8 {[%clk 0:00:27]} 30. Bf7 {[%clk 0:00:31]}  Rec8 {[%clk 0:00:16]} 31. Qd2 {[%clk 0:00:28]}  Qe4+ {[%clk 0:00:16]} 32. Qd3 {[%clk 0:00:27]}  Qe5 {[%clk 0:00:14]} 33. Qd2 {[%clk 0:00:16]}  Qe4+ {[%clk 0:00:13]} 34. Nc2 {[%clk 0:00:14]}  Rxc2 {[%clk 0:00:08]} 35. Qxc2 {[%clk 0:00:15]}  Qe5 {[%clk 0:00:09]} 36. Kc1 {[%clk 0:00:12]}  Qa1+ {[%clk 0:00:02]} 37. Kd2 {[%clk 0:00:11]}  Qd4+ {[%clk 0:00:03]} 38. Qd3 {[%clk 0:00:10]}  Qf4+ {[%clk 0:00:02]} 39. Qe3 {[%clk 0:00:08]}  Bc3+ {[%clk 0:00:02]} 40. Ke2 {[%clk 0:00:08]}  Qg4+ {[%clk 0:00:01]} 41. Qf3 {[%clk 0:00:09]} 1-0


[Site "https://www.chess.com"]

[Event "Titled Tuesday Blitz December 13 Late 2022"]
[White "Joubert, Dantelle"]
[Black "Prieto Aranguren, Alain"]
[WhiteFideId "14310813"]
[BlackFideId "2268906"]
[WhiteElo "1507"]
[BlackElo "2209"]
[Result "1-0"]
[Round "04"]
[TimeControl "180+1"]
[Date "2022.12.14"]
[WhiteClock "0:00:05"]
[BlackClock "0:00:33"]

1. d4 {[%clk 0:03:00]}  Nf6 {[%clk 0:02:57]} 2. c4 {[%clk 0:03:00]}  c5 {[%clk 0:02:56]} 3. d5 {[%clk 0:02:59]}  e6 {[%clk 0:02:56]} 4. Nc3 {[%clk 0:02:58]}  b5 {[%clk 0:02:56]} 5. cxb5 {[%clk 0:02:52]}  a6 {[%clk 0:02:54]} 6. bxa6 {[%clk 0:02:50]}  Bxa6 {[%clk 0:02:52]} 7. e4 {[%clk 0:02:49]}  Bxf1 {[%clk 0:02:52]} 8. Kxf1 {[%clk 0:02:50]}  exd5 {[%clk 0:02:52]} 9. exd5 {[%clk 0:02:48]}  d6 {[%clk 0:02:52]} 10. g3 {[%clk 0:02:44]}  Be7 {[%clk 0:02:51]} 11. Kg2 {[%clk 0:02:43]}  O-O {[%clk 0:02:52]} 12. Nf3 {[%clk 0:02:33]}  Na6 {[%clk 0:02:53]} 13. h3 {[%clk 0:02:30]}  Ra7 {[%clk 0:02:52]} 14. Re1 {[%clk 0:02:15]}  Qa8 {[%clk 0:02:51]} 15. Bg5 {[%clk 0:01:56]}  Nb4 {[%clk 0:02:50]} 16. Rxe7 {[%clk 0:01:34]}  Rxe7 {[%clk 0:02:48]} 17. Bxf6 {[%clk 0:01:23]}  gxf6 {[%clk 0:02:46]} 18. g4 {[%clk 0:01:23]}  Rfe8 {[%clk 0:02:42]} 19. Qd2 {[%clk 0:01:19]}  Qb7 {[%clk 0:02:19]} 20. a3 {[%clk 0:01:09]}  Na6 {[%clk 0:02:18]} 21. Nh4 {[%clk 0:01:02]}  Nc7 {[%clk 0:01:58]} 22. Nf5 {[%clk 0:00:26]}  Re5 {[%clk 0:01:56]} 23. Nxd6 {[%clk 0:00:24]}  Qa8 {[%clk 0:01:43]} 24. Nxe8 {[%clk 0:00:23]}  Nxe8 {[%clk 0:01:43]} 25. Rd1 {[%clk 0:00:20]}  Nd6 {[%clk 0:01:40]} 26. Qf4 {[%clk 0:00:20]}  Kg7 {[%clk 0:01:39]} 27. h4 {[%clk 0:00:20]}  Qb7 {[%clk 0:01:35]} 28. g5 {[%clk 0:00:19]}  Qe7 {[%clk 0:01:19]} 29. Rd3 {[%clk 0:00:19]}  fxg5 {[%clk 0:01:09]} 30. Rg3 {[%clk 0:00:18]}  h6 {[%clk 0:01:04]} 31. hxg5 {[%clk 0:00:12]}  hxg5 {[%clk 0:01:02]} 32. Qh4 {[%clk 0:00:11]}  Ne8 {[%clk 0:00:49]} 33. f4 {[%clk 0:00:10]}  Rf5 {[%clk 0:00:44]} 34. Rxg5+ {[%clk 0:00:09]}  Rxg5+ {[%clk 0:00:44]} 35. Qxg5+ {[%clk 0:00:07]}  Qxg5+ {[%clk 0:00:43]} 36. fxg5 {[%clk 0:00:07]}  Nd6 {[%clk 0:00:40]} 37. Kg3 {[%clk 0:00:07]}  Kg6 {[%clk 0:00:39]} 38. Kf4 {[%clk 0:00:07]}  Nc4 {[%clk 0:00:37]} 39. Nd1 {[%clk 0:00:06]}  f6 {[%clk 0:00:37]} 40. b3 {[%clk 0:00:06]}  Nd6 {[%clk 0:00:36]} 41. gxf6 {[%clk 0:00:05]}  Kxf6 {[%clk 0:00:36]} 42. a4 {[%clk 0:00:04]}  Nb7 {[%clk 0:00:36]} 43. Ne3 {[%clk 0:00:04]}  Ke7 {[%clk 0:00:36]} 44. Ke5 {[%clk 0:00:04]}  Kd7 {[%clk 0:00:36]} 45. Nc4 {[%clk 0:00:04]}  Nd8 {[%clk 0:00:35]} 46. a5 {[%clk 0:00:04]}  Kc7 {[%clk 0:00:35]} 47. a6 {[%clk 0:00:04]}  Nf7+ {[%clk 0:00:33]} 48. Ke6 {[%clk 0:00:04]}  Ng5+ {[%clk 0:00:31]} 49. Ke7 {[%clk 0:00:04]}  Ne4 {[%clk 0:00:31]} 50. d6+ {[%clk 0:00:04]}  Nxd6 {[%clk 0:00:31]} 51. Nxd6 {[%clk 0:00:04]}  Kb6 {[%clk 0:00:32]} 52. Nc4+ {[%clk 0:00:04]}  Kxa6 {[%clk 0:00:32]} 53. Kd6 {[%clk 0:00:05]}  Kb5 {[%clk 0:00:33]} 54. Nd2 {[%clk 0:00:05]}  Kb4 {[%clk 0:00:33]} 55. Kd5 {[%clk 0:00:05]}  Kc3 {[%clk 0:00:33]} 56. Kxc5 {[%clk 0:00:05]} 1-0


[Site "https://www.chess.com"]